Cogmind - Beta 13 X1 @@@ ROGUE MODE // 2023.11.17 @ 14:45:56 Player: VR-DUX Result: Self-destructed Performance ------------- Evolutions (7) 3500 Regions Visited (28) 5600 Robots Destroyed (114) 570 Value Destroyed (2084) 2084 Prototype IDs (69) 1380 Alien Tech Used (2) 400 Bonus (3312) 3312 TOTAL SCORE: 16846 Bonus ------- Follower Combat Kills 430 Aligned with FarCom 300 Met Data Miner 300 Met Imprinter 300 Destroyed Z-Imprinter 1000 Met Warlord at Base 500 MAIN.C Attacked Warlord 500 Friendly Fire -18 Cogmind --------- Core Integrity 1036/1300 Matter 298/300 Energy 175/175 System Corruption 1% Temperature Cool (0) Movement Flying (102) Ox1 Location -3/Research Parts ------- > --- POWER (2) -------- Light Ion Engine Micro Antimatter Reactor > --- PROPULSION (8) --- Improved VTOL Module Q-thruster Improved Diametric Drive > --- UTILITY (9) ------ Experimental Heat Sink Large Storage Unit Structural Scanner Machine Analyzer Advanced Signal Interpreter Makeshift Hacking Suite System Shield > --- WEAPON (2) ------- Longsword +1 > --- INVENTORY (15) --- Light Ion Engine Medium Storage Unit Advanced Energy Well (500) Cloak of Protection Advanced Remote Shield Mini Drone Bay (3/3) Phasing AFG Transdimensional Reconstructor Vortex Rail (12) Vortex Catalyst Activator (10) Field Lobotomy Kit (5) Great Maul Peak State ------------ > --- POWER ------------ Light Ion Engine Micro Antimatter Reactor > --- PROPULSION ------- Improved VTOL Module Improved VTOL Module Field Propulsion Array Improved Diametric Drive Cooled Impulse Thruster Impulse Thruster Array > --- UTILITY ---------- Experimental Heat Sink Large Storage Unit Zionite Biocell Structural Scanner Machine Analyzer Advanced Sensor Array Advanced Signal Interpreter Makeshift Hacking Suite > --- WEAPON ----------- Vortex Rail Longsword +1 > --- INVENTORY -------- Medium Storage Unit Advanced Energy Well Cloak of Protection Advanced Remote Shield System Shield Mini Drone Bay Phasing AFG Transdimensional Reconstructor Vortex Catalyst Activator Field Lobotomy Kit Great Maul [Rating: 123] Favorites ----------- Power Improved Ion Engine Engine Improved Ion Engine Power Core Micro Nuclear Core Reactor Micro Antimatter Reactor Propulsion Light Treads Treads Light Treads Leg Aluminum Leg Flight Unit Improved VTOL Module Utility Medium Storage Unit Device Structural Scanner Storage Medium Storage Unit Processor Machine Analyzer Hackware Hacking Suite Protection Layered Light Armor Plating Weapon Autogun Energy Gun Backup Laser III Energy Cannon Advanced Beam Cannon Ballistic Gun Autogun Ballistic Cannon Assault Cannon Launcher Grenade Launcher Special Weapon Field Lobotomy Kit Impact Weapon Great Maul Slashing Weapon Longsword +1 Build | -11 -10 -10 -10 -9 -8 -8 -7 -7 -7 -7 -6 -6 -6 -6 -6 -6 -5 -5 -5 -5 -5 -4 -4 -4 -4 -4 -3 -3 ------- Run | Jun Mat Min Exi Min Mat Sto Fac Low Low Dat Pro Fac Low Low Zio Dee Pro Fac Upp Upp War Pro Fac Upp Upp Zhi Pro Res Slots Evolved 14 | . . . . . 4 . 2 . . . . 2 . . . . . 2 . . . . 2 . . . . 2 Power 1 | . . . . . . . . . . . . . . . . . . 1 . . . . . . . . . . Propulsion 6 | . . . . . 2 . 2 . . . . . . . . . . 1 . . . . . . . . . 1 Utility 7 | . . . . . 2 . . . . . . 2 . . . . . . . . . . 2 . . . . 1 Weapon . | . . . . . . . . . . . . . . . . . . . . . . . . . . . . . Parts Attached 154 | 1 11 1 6 6 17 30 14 3 . . . 6 . . 4 8 1 3 . 2 11 . 4 2 . 6 6 12 Power 15 | . 2 . . . 2 4 1 . . . . 1 . . . 1 . 1 . . . . . . . . . 3 Engine 10 | . 2 . . . 1 3 1 . . . . . . . . 1 . . . . . . . . . . . 2 Core 4 | . . . . . 1 1 . . . . . 1 . . . . . 1 . . . . . . . . . . Reactor 1 | . . . . . . . . . . . . . . . . . . . . . . . . . . . . 1 Propulsion 41 | . 2 1 . . 11 7 6 . . . . . . . 2 1 . 1 . 1 2 . 1 . . . 1 5 Treads 20 | . 2 1 . . 11 6 . . . . . . . . . . . . . . . . . . . . . . Leg . | . . . . . . . . . . . . . . . . . . . . . . . . . . . . . Wheel . | . . . . . . . . . . . . . . . . . . . . . . . . . . . . . Hover . | . . . . . . . . . . . . . . . . . . . . . . . . . . . . . Flight 21 | . . . . . . 1 6 . . . . . . . 2 1 . 1 . 1 2 . 1 . . . 1 5 Utility 57 | 1 3 . 2 . 4 2 5 1 . . . 4 . . 2 6 1 1 . 1 6 . 3 2 . 6 4 3 Device 31 | 1 1 . 1 . 1 . 1 1 . . . 3 . . 1 2 1 1 . . 5 . 2 1 . 4 3 2 Storage 8 | . 1 . . . 1 . 2 . . . . . . . . 1 . . . 1 . . . 1 . 1 . . Processor 4 | . . . . . . . 2 . . . . . . . . . . . . . 1 . 1 . . . . . Hackware 4 | . . . . . . . . . . . . 1 . . 1 . . . . . . . . . . . 1 1 Protection 10 | . 1 . 1 . 2 2 . . . . . . . . . 3 . . . . . . . . . 1 . . Artifact . | . . . . . . . . . . . . . . . . . . . . . . . . . . . . . Weapon 41 | . 4 . 4 6 . 17 2 2 . . . 1 . . . . . . . . 3 . . . . . 1 1 Energy Gun 2 | . . . . . . . . . . . . . . . . . . . . . 1 . . . . . . 1 Energy Cannon 1 | . 1 . . . . . . . . . . . . . . . . . . . . . . . . . . . Ballistic Gun 19 | . 3 . 2 3 . 8 1 1 . . . 1 . . . . . . . . . . . . . . . . Ballistic Cannon 1 | . . . . . . 1 . . . . . . . . . . . . . . . . . . . . . . Launcher 10 | . . . . 3 . 5 . 1 . . . . . . . . . . . . 1 . . . . . . . Special Weapon 1 | . . . 1 . . . . . . . . . . . . . . . . . . . . . . . . . Impact Weapon 1 | . . . . . . . . . . . . . . . . . . . . . . . . . . . 1 . Slashing Weapon 6 | . . . 1 . . 3 1 . . . . . . . . . . . . . 1 . . . . . . . Piercing Weapon . | . . . . . . . . . . . . . . . . . . . . . . . . . . . . . Special Melee Weapon . | . . . . . . . . . . . . . . . . . . . . . . . . . . . . . Unidentified Prototypes 20 | . 1 . . . . 2 . . . . . . . . 1 5 . . . . 6 . . 1 . 3 . 1 Parts Lost 17 | . . . . . 1 . . 1 . . . . . . . 1 . . . 1 . . . . . . 1 12 Power 4 | . . . . . . . . . . . . . . . . 1 . . . . . . . . . . . 3 Propulsion 8 | . . . . . . . . . . . . . . . . . . . . 1 . . . . . . 1 6 Utility 4 | . . . . . 1 . . . . . . . . . . . . . . . . . . . . . . 3 Weapon 1 | . . . . . . . . 1 . . . . . . . . . . . . . . . . . . . . Highest Loss Streak 4 | . . . . . 1 . . 1 . . . . . . . 1 . . . 1 . . . . . . 1 4 To Critical Strikes . | . . . . . . . . . . . . . . . . . . . . . . . . . . . . . Average Slot Usage (%) 97 | . 99 100 99 100 97 99 93 99 100 100 100 94 100 100 100 96 93 91 94 94 98 88 81 82 84 83 84 80 Engine 8 | . 14 14 14 14 2 8 7 7 7 7 7 2 . . . 4 6 5 5 5 5 5 5 5 5 5 5 3 Core 2 | . . . . . 5 . . . . . . 3 6 6 6 1 . 2 5 5 5 5 5 5 5 5 5 2 Treads 19 | . 24 28 28 28 35 35 . . . . . . . . . . . . . . . . . . . . . . Flight 13 | . . . . . . . 45 46 46 46 46 40 40 40 40 40 40 41 41 41 40 35 28 26 26 26 26 25 Device 7 | . 11 . . . 3 9 7 7 7 7 7 16 13 13 13 9 6 8 11 11 10 11 15 15 15 14 15 16 Storage 10 | . 14 14 14 14 9 9 7 7 7 7 7 6 6 6 6 6 6 5 5 5 5 5 5 8 10 10 10 7 Processor 4 | . . . . . . . 10 15 15 15 15 13 13 13 13 13 13 11 11 11 11 11 10 10 10 10 10 9 Hackware 1 | . . . . . . . . . . . . 1 6 6 6 6 6 5 5 5 5 5 5 5 5 5 5 5 Protection 8 | . 1 14 13 14 20 18 1 . . . . . . . . 3 6 2 . . . . . . . . . . Energy Gun 1 | . 4 . . . . . . . . . . . . . . . . . . . 4 . . . . . . 1 Ballistic Gun 13 | . 23 28 20 23 18 13 5 6 7 7 7 2 6 6 6 2 . . . . . . . . . . . . Slashing Weapon 2 | . . . 6 . . 2 6 7 7 7 7 6 6 6 6 6 6 5 5 5 5 5 5 5 5 5 5 4 Naked Turns . | . . . . . . . . . . . . . . . . . . . . . . . . . . . . . Heaviest Build 64 | 13 26 26 36 26 60 64 29 22 22 22 22 25 24 24 24 24 21 25 25 35 38 35 37 38 38 38 47 48 Greatest Support 83 | 20 40 40 40 40 83 82 30 25 30 30 30 30 30 25 32 32 32 37 37 37 44 44 49 49 49 49 49 55 Greatest Overweight (x) 1 | . . . . . . . . . . . . . . . . . . . . . . . . . . . . 1 Average Overweight (x) . | . . . . . . . . . . . . . . . . . . . . . . . . . . . . . Largest Inventory Capacity 20 | 8 10 10 10 10 20 20 20 10 10 10 10 10 10 10 10 10 10 10 10 15 15 15 15 15 15 15 15 15 Average Capacity 12 | 8 9 10 10 10 16 20 13 10 10 10 10 10 10 10 10 10 10 10 10 10 15 15 15 15 15 15 15 15 Most Carried 20 | 7 10 10 10 10 20 20 19 10 10 10 10 10 10 10 10 10 10 10 9 9 15 15 15 15 14 15 15 15 Average Carried 12 | 6 9 9 9 9 15 19 9 9 10 10 10 9 10 10 9 9 10 9 9 8 13 15 14 14 14 14 14 13 Final Capacity 20 | 8 10 10 10 10 20 20 10 10 10 10 10 10 10 10 10 10 10 10 10 15 15 15 15 15 15 15 15 15 Final Carried 20 | 7 10 10 10 10 20 20 10 10 10 10 10 10 10 10 9 10 10 9 9 8 15 15 15 14 14 15 14 13 Class Distribution -------------------- 46% | Mutant 17% | Scavenger-Mutant 17% | Sprinter 8% | Scavenger-Sprinter 5% | Commander-Sprinter 3% | Scavenger-Scout Dominant Class ---------------- Mutant | -10/Materials Mutant | -10/Mines Mutant | -10/Exiles Mutant | -9/Mines Mutant | -8/Materials Scavenger-Mutant | -8/Storage Sprinter | -7/Factory Sprinter | -7/Lower Caves Sprinter | -7/Lower Caves Sprinter | -7/Data Miner Sprinter | -6/Proximity Caves Sprinter | -6/Factory Sprinter | -6/Lower Caves Sprinter | -6/Lower Caves Sprinter | -6/Zion Scavenger-Sprinter | -6/Deep Caves Sprinter | -5/Proximity Caves Sprinter | -5/Factory Sprinter | -5/Upper Caves Sprinter | -5/Upper Caves Commander-Sprinter | -5/Warlord Scavenger-Sprinter | -4/Proximity Caves Scavenger-Sprinter | -4/Factory Scavenger-Sprinter | -4/Upper Caves Scavenger-Sprinter | -4/Upper Caves Scavenger-Sprinter | -4/Zhirov Scavenger-Sprinter | -3/Proximity Caves Scavenger-Scout | -3/Research Resources | -11 -10 -10 -10 -9 -8 -8 -7 -7 -7 -7 -6 -6 -6 -6 -6 -6 -5 -5 -5 -5 -5 -4 -4 -4 -4 -4 -3 -3 ----------- Run | Jun Mat Min Exi Min Mat Sto Fac Low Low Dat Pro Fac Low Low Zio Dee Pro Fac Upp Upp War Pro Fac Upp Upp Zhi Pro Res Matter Collected 3636 | 225 376 98 50 316 597 1115 106 113 . . . 43 . 17 . 145 . 20 . 21 124 . . 29 . 111 26 104 Remotely . | . . . . . . . . . . . . . . . . . . . . . . . . . . . . . Salvage Created 3872 | 72 512 133 . 165 714 1483 42 74 . . . 43 . . . 74 . 120 . . . . . 27 . 224 . 189 Parts 283 | 4 48 10 . 39 37 102 2 5 . . . 5 . . . 4 . 4 . . . . . . . 3 . 20 Haulers Intercepted 12 | . 2 . . . 2 6 1 . . . . . . . . . . 1 . . . . . . . . . . Recyclers Shooed 6 | . 1 . . . 1 3 . . . . . . . . . . . . . . . . . . . . . 1 Parts Field Recycled . | . . . . . . . . . . . . . . . . . . . . . . . . . . . . . Retrieved Matter . | . . . . . . . . . . . . . . . . . . . . . . . . . . . . . Parts Self-Destructed 15 | . . . . . . . . 2 1 . 7 . 2 . . . . . . . . . . . . 3 . . Prevented . | . . . . . . . . . . . . . . . . . . . . . . . . . . . . . Kills | -11 -10 -10 -10 -9 -8 -8 -7 -7 -7 -7 -6 -6 -6 -6 -6 -6 -5 -5 -5 -5 -5 -4 -4 -4 -4 -4 -3 -3 ------- Run | Jun Mat Min Exi Min Mat Sto Fac Low Low Dat Pro Fac Low Low Zio Dee Pro Fac Upp Upp War Pro Fac Upp Upp Zhi Pro Res Combat Hostiles Destroyed 54 | . 12 5 . 8 11 13 . 4 . . . . . . . 1 . . . . . . . . . . . . Guns 38 | . 12 5 . . 11 7 . 2 . . . . . . . 1 . . . . . . . . . . . . Cannons 1 | . . . . . . 1 . . . . . . . . . . . . . . . . . . . . . . AOE 15 | . . . . 8 . 5 . 2 . . . . . . . . . . . . . . . . . . . . Classes Destroyed 13 | 2 7 . . . 1 2 . 1 . . . . . . . . . . . . . . . . . . . . Worker 11 | . 1 . . 1 . 8 . . . . . . . . . . . . . . . . . . . . . 1 Builder 14 | . 1 . . 4 . 6 . . . . . . . . . . . . . . . . . . . . . 3 Tunneler 4 | 1 . . . 3 . . . . . . . . . . . . . . . . . . . . . . . . Hauler 12 | . 2 . . . 2 6 1 . . . . . . . . . . 1 . . . . . . . . . . Recycler 7 | 1 1 . . . 1 4 . . . . . . . . . . . . . . . . . . . . . . Mechanic 1 | . . . . . . 1 . . . . . . . . . . . . . . . . . . . . . . Operator 4 | . 1 . . . . . . . . . . 1 . . . . . . . . . . . . . . . 2 Watcher 7 | . 3 . . . . 2 . . . . . 1 . . . . . . . . . . . . . . . 1 Swarmer 24 | . 9 3 . 8 . . . 4 . . . . . . . . . . . . . . . . . . . . Grunt 21 | . 3 2 . . 8 8 . . . . . . . . . . . . . . . . . . . . . . Brawler 1 | . . . . . . 1 . . . . . . . . . . . . . . . . . . . . . . Sentry 7 | . . . . . 3 4 . . . . . . . . . . . . . . . . . . . . . . Decomposer 1 | . . . . . . . . . . . . . . . . . . . . . . . . 1 . . . . Samaritan 1 | . . . . . . . . 1 . . . . . . . . . . . . . . . . . . . . Best Kill Streak 5 | 2 4 3 . 4 3 5 1 4 . . . 2 . . . 1 . 1 . . . . . . . . . 3 Combat Bots Only 4 | . 3 3 . 3 3 3 . 4 . . . . . . . 1 . . . . . . . . . . . . Max Kills in Single Turn 3 | 1 1 1 . 3 1 2 1 1 . . . 1 . . . 1 . 1 . . . . . 1 . . . 1 Gunslinging 1 | . . . . . . 1 . . . . . . . . . . . . . . . . . . . . . . Exploded 3 | . . . . 3 . 2 . 1 . . . . . . . . . . . . . . . . . . . . Melee . | . . . . . . . . . . . . . . . . . . . . . . . . . . . . . Uniques/NPCs Destroyed 1 | . . . . . . . . . . . . . . . . 1 . . . . . . . . . . . . Z-Imprinter (-6/Deep Caves) Combat | -11 -10 -10 -10 -9 -8 -8 -7 -7 -7 -7 -6 -6 -6 -6 -6 -6 -5 -5 -5 -5 -5 -4 -4 -4 -4 -4 -3 -3 -------- Run | Jun Mat Min Exi Min Mat Sto Fac Low Low Dat Pro Fac Low Low Zio Dee Pro Fac Upp Upp War Pro Fac Upp Upp Zhi Pro Res Damage Taken 4628 | . 253 140 . 93 795 981 40 215 . . . 129 48 36 . 102 217 . . 58 76 18 26 18 119 . 111 1153 Core 920 | . 69 26 . 18 71 64 18 69 . . . 52 22 . . 34 112 . . 18 . 18 . . 23 . 42 264 Absorbed by Shields 44 | . . . . . . . . . . . . . . . . . . . . . . . 10 . . . 34 . Regen/Repaired (Parts) 6 | . . . . . . . . . . . . . . . . . . . . . 6 . . . . . . . Core Remaining (%) 82 | 100 . . . 54 . 75 . . . . 87 . . . . . 74 . . . . 96 . . . . 94 . Volleys Fired 286 | 5 57 11 . 28 61 100 . 11 . . . . . . . 10 . . . . . . . . . . . 3 Largest 2 | 2 2 2 . 2 2 2 . 1 . . . . . . . 1 . . . . . . . . . . . 1 Hottest 70 | 70 70 46 . 53 46 67 . 30 . . . . . . . 23 . . . . . . . . . . . 45 Shots Fired 516 | 9 114 22 . 48 114 185 . 11 . . . . . . . 10 . . . . . . . . . . . 3 Gun 480 | 9 114 22 . 39 114 161 . 8 . . . . . . . 10 . . . . . . . . . . . 3 Cannon 12 | . . . . . . 12 . . . . . . . . . . . . . . . . . . . . . . Launcher 24 | . . . . 9 . 12 . 3 . . . . . . . . . . . . . . . . . . . . Special . | . . . . . . . . . . . . . . . . . . . . . . . . . . . . . Kinetic 448 | 5 77 22 . 39 114 173 . 8 . . . . . . . 10 . . . . . . . . . . . . Thermal 41 | 4 37 . . . . . . . . . . . . . . . . . . . . . . . . . . . Explosive 24 | . . . . 9 . 12 . 3 . . . . . . . . . . . . . . . . . . . . Electromagnetic . | . . . . . . . . . . . . . . . . . . . . . . . . . . . . . Entropic 3 | . . . . . . . . . . . . . . . . . . . . . . . . . . . . 3 Robot Hit Streak 21 | 6 8 5 . 7 21 12 . 2 . . . . . . . 4 . . . . . . . . . . . . Robot Miss Streak 4 | 1 2 1 . 4 3 3 . 3 . . . . . . . 4 . . . . . . . . . . . . Penetration Max . | . . . . . . . . . . . . . . . . . . . . . . . . . . . . . Secondary Targets 4 | . 1 . . . 1 2 . . . . . . . . . . . . . . . . . . . . . . Max Gunslinging Chain 1 | . 1 . . . 1 1 . . . . . . . . . . . . . . . . . . . . . . Shots Hit Robots 363 | 7 68 13 . 24 84 121 8 5 . . . 5 . . . 5 . 1 . . . . . 1 . 12 . 9 Core Hits 164 | 3 25 6 . 17 32 65 . 9 . . . 1 . . . 3 . 1 . . . . . . . . . 2 Critical Kills 2 | . 1 . . . 1 . . . . . . . . . . . . . . . . . . . . . . . Critical Parts Destroyed 2 | . . . . . 1 1 . . . . . . . . . . . . . . . . . . . . . . Critical Strikes 7 | . 3 . . . 2 1 1 . . . . . . . . . . . . . . . . . . . . . Burn 2 | . 2 . . . . . . . . . . . . . . . . . . . . . . . . . . . Destroy 4 | . 1 . . . 2 1 . . . . . . . . . . . . . . . . . . . . . . Sever 1 | . . . . . . . 1 . . . . . . . . . . . . . . . . . . . . . Melee Attacks 114 | . . . . . . 14 9 2 . . 2 16 . . 6 . . 11 . . . 1 7 2 1 12 1 30 Impact . | . . . . . . . . . . . . . . . . . . . . . . . . . . . . . Slashing 114 | . . . . . . 14 9 2 . . 2 16 . . 6 . . 11 . . . 1 7 2 1 12 1 30 Piercing . | . . . . . . . . . . . . . . . . . . . . . . . . . . . . . Sneak Attacks 15 | . . . . . . 4 2 1 . . . . . . . . . 1 . . . . . 1 . . . 6 Combat Hostiles . | . . . . . . . . . . . . . . . . . . . . . . . . . . . . . Follow-up Attacks . | . . . . . . . . . . . . . . . . . . . . . . . . . . . . . Damage Inflicted 10136 | 84 942 223 . 818 1277 3071 560 471 . . . 324 . . . 97 . 85 . . . . . 129 . 1178 . 877 Guns 4698 | 84 942 223 . 304 1277 1713 . 58 . . . . . . . 97 . . . . . . . . . . . . Cannons 145 | . . . . . . 145 . . . . . . . . . . . . . . . . . . . . . . Explosions 1504 | . . . . 514 . 682 . 308 . . . . . . . . . . . . . . . . . . . . Melee 3789 | . . . . . . 531 560 105 . . . 324 . . . . . 85 . . . . . 129 . 1178 . 877 Ramming . | . . . . . . . . . . . . . . . . . . . . . . . . . . . . . Kinetic 4497 | 46 634 223 . 304 1277 1858 . 58 . . . . . . . 97 . . . . . . . . . . . . Thermal 346 | 38 308 . . . . . . . . . . . . . . . . . . . . . . . . . . . Explosive 1504 | . . . . 514 . 682 . 308 . . . . . . . . . . . . . . . . . . . . Electromagnetic . | . . . . . . . . . . . . . . . . . . . . . . . . . . . . . Impact . | . . . . . . . . . . . . . . . . . . . . . . . . . . . . . Slashing 3789 | . . . . . . 531 560 105 . . . 324 . . . . . 85 . . . . . 129 . 1178 . 877 Piercing . | . . . . . . . . . . . . . . . . . . . . . . . . . . . . . Highest Corruption 1 | . . . . . . . . . . . . . . . . . . . . . . . . . 1 1 . 1 Average Corruption 1 | . . . . . . . . . . . . . . . . . . . . . . . . . 1 1 . 1 Corruption Purged 1 | . . . . . . . . . . . . . . . . . . . . . . . . . . 1 . . Corruption Blocked . | . . . . . . . . . . . . . . . . . . . . . . . . . . . . . Effects 2 | . . . . . . . . . . . . . . . . . . . . . . . . . . 1 . 1 Message Errors 2 | . . . . . . . . . . . . . . . . . . . . . . . . . . 1 . 1 Overload Shots . | . . . . . . . . . . . . . . . . . . . . . . . . . . . . . Overflow Damage 1226 | . . . . 2 . 86 58 . . . . 78 . . . . . . . . . . . 113 . 424 . 465 Projectiles . | . . . . . . . . . . . . . . . . . . . . . . . . . . . . . Explosions 2 | . . . . 2 . . . . . . . . . . . . . . . . . . . . . . . . Melee 1224 | . . . . . . 86 58 . . . . 78 . . . . . . . . . . . 113 . 424 . 465 Knockbacks . | . . . . . . . . . . . . . . . . . . . . . . . . . . . . . Impact . | . . . . . . . . . . . . . . . . . . . . . . . . . . . . . Kinetic . | . . . . . . . . . . . . . . . . . . . . . . . . . . . . . Secondary . | . . . . . . . . . . . . . . . . . . . . . . . . . . . . . Self-Inflicted Damage 24 | . . . . 7 . 17 . . . . . . . . . . . . . . . . . . . . . . Shots 3 | . . . . 1 . 2 . . . . . . . . . . . . . . . . . . . . . . Rammed 1 | . . . . . . . . . . . . . . . . . . . . . . . . . . . . 1 Targets Rammed 1 | . . . . . . . . . . . . . . . . . . . . . . . . . . . . 1 Kicked . | . . . . . . . . . . . . . . . . . . . . . . . . . . . . . Crushed . | . . . . . . . . . . . . . . . . . . . . . . . . . . . . . Highest Temperature 314 | 27 54 72 . 40 314 213 104 14 132 128 93 . . . . . 149 . . . . . . . . . . . Average Temperature 47 | 12 16 32 . 13 88 48 28 2 54 68 32 . . . . . 81 . . . . . . . . . . . Received Heat Transfer 1329 | . 18 48 . . 504 351 18 18 . . . 42 12 . . 27 27 . . . . . . . 9 . 28 227 Effects 2 | . . . . . 2 . . . . . . . . . . . . . . . . . . . . . . . Energy Bleed 1 | . . . . . 1 . . . . . . . . . . . . . . . . . . . . . . . Interference 1 | . . . . . 1 . . . . . . . . . . . . . . . . . . . . . . . Siege Activations . | . . . . . . . . . . . . . . . . . . . . . . . . . . . . . Robots Corrupted . | . . . . . . . . . . . . . . . . . . . . . . . . . . . . . Combat Hostiles . | . . . . . . . . . . . . . . . . . . . . . . . . . . . . . Parts Fried . | . . . . . . . . . . . . . . . . . . . . . . . . . . . . . Impact Corruptions . | . . . . . . . . . . . . . . . . . . . . . . . . . . . . . Robots Melted . | . . . . . . . . . . . . . . . . . . . . . . . . . . . . . Combat Hostiles . | . . . . . . . . . . . . . . . . . . . . . . . . . . . . . Parts Melted 2 | . 2 . . . . . . . . . . . . . . . . . . . . . . . . . . . Heat Transferred 1147 | 111 1036 . . . . . . . . . . . . . . . . . . . . . . . . . . . Parts Sabotaged . | . . . . . . . . . . . . . . . . . . . . . . . . . . . . . Parts Stolen . | . . . . . . . . . . . . . . . . . . . . . . . . . . . . . Parts Stripped . | . . . . . . . . . . . . . . . . . . . . . . . . . . . . . Power Chain Reactions . | . . . . . . . . . . . . . . . . . . . . . . . . . . . . . Missiles Intercepted . | . . . . . . . . . . . . . . . . . . . . . . . . . . . . . Alert | -11 -10 -10 -10 -9 -8 -8 -7 -7 -7 -7 -6 -6 -6 -6 -6 -6 -5 -5 -5 -5 -5 -4 -4 -4 -4 -4 -3 -3 ------- Run | Jun Mat Min Exi Min Mat Sto Fac Low Low Dat Pro Fac Low Low Zio Dee Pro Fac Upp Upp War Pro Fac Upp Upp Zhi Pro Res Peak Influence 603 | 10 281 123 . 149 184 378 190 . . . . 257 . . . . . 249 . . . . 29 . . . . 603 Initial 123 | . 6 3 . . . 77 123 . . . . 56 . . . . . 75 . . . . . . . . . 63 Average 122 | 8 70 106 . 46 58 223 137 . . . . 133 . . . . . 140 . . . . 12 . . . . 382 Maximum Alert Level 2 | . 1 . . . . 1 . . . . . 1 . . . . . 1 . . . . . . . . . 2 Low Security (%) 80 | 100 94 100 . 100 100 43 100 . . . . 69 . . . . . 76 . . . . 100 . . . . 23 Level 1 15 | . 5 . . . . 56 . . . . . 30 . . . . . 23 . . . . . . . . . 13 Level 2 4 | . . . . . . . . . . . . . . . . . . . . . . . . . . . . 63 Level 3 . | . . . . . . . . . . . . . . . . . . . . . . . . . . . . . Level 4 . | . . . . . . . . . . . . . . . . . . . . . . . . . . . . . Level 5 . | . . . . . . . . . . . . . . . . . . . . . . . . . . . . . High Security . | . . . . . . . . . . . . . . . . . . . . . . . . . . . . . Max Security . | . . . . . . . . . . . . . . . . . . . . . . . . . . . . . Squads Dispatched 13 | . 1 . . . 2 2 1 . . . . 1 . . . . . 1 . . . . . . 1 . . 4 Investigation 5 | . . . . . 2 . . . . . . 1 . . . . . . . . . . . . . . . 2 Extermination . | . . . . . . . . . . . . . . . . . . . . . . . . . . . . . Reinforcement 7 | . 1 . . . . 2 1 . . . . . . . . . . 1 . . . . . . . . . 2 Assault 1 | . . . . . . . . . . . . . . . . . . . . . . . . . 1 . . . Garrison . | . . . . . . . . . . . . . . . . . . . . . . . . . . . . . Intercept . | . . . . . . . . . . . . . . . . . . . . . . . . . . . . . Searches Triggered 1 | . . . . . . . . . . . . . . . . . . . . . . . . . . . . 1 Data Miner Redirects 2 | . . . . . . . . . . . . 1 . . . . . . . . . . . . . . . 1 Construction Impeded 1 | . . . . . . 1 . . . . . . . . . . . . . . . . . . . . . . Haulers Reinforced 1 | . . . . . . . . . . . . . . . . . . . . . . . . . . . . 1 Active Scanning Responses . | . . . . . . . . . . . . . . . . . . . . . . . . . . . . . Cargo Convoy Interrupts . | . . . . . . . . . . . . . . . . . . . . . . . . . . . . . Stealth | -11 -10 -10 -10 -9 -8 -8 -7 -7 -7 -7 -6 -6 -6 -6 -6 -6 -5 -5 -5 -5 -5 -4 -4 -4 -4 -4 -3 -3 --------- Run | Jun Mat Min Exi Min Mat Sto Fac Low Low Dat Pro Fac Low Low Zio Dee Pro Fac Upp Upp War Pro Fac Upp Upp Zhi Pro Res Distress Signals 11 | . . . . . 1 5 . . . . . 1 . . . . . . . . 1 . . . . . . 3 Communications Jammed . | . . . . . . . . . . . . . . . . . . . . . . . . . . . . . Distress Signals . | . . . . . . . . . . . . . . . . . . . . . . . . . . . . . Times Spotted 299 | . 21 5 . 7 17 22 6 21 7 . 8 14 9 2 . 10 17 10 8 2 27 3 2 4 14 . 11 52 Peak Tracking Total 17 | . 3 3 . 3 4 4 5 7 4 . 4 5 4 4 . 6 12 5 8 2 9 3 5 3 17 . 6 13 Tactical Retreats 41 | . . . . . 2 1 1 6 2 . . 3 2 1 . 1 1 2 1 . 3 . . 1 1 . 2 11 Traps | -11 -10 -10 -10 -9 -8 -8 -7 -7 -7 -7 -6 -6 -6 -6 -6 -6 -5 -5 -5 -5 -5 -4 -4 -4 -4 -4 -3 -3 ------- Run | Jun Mat Min Exi Min Mat Sto Fac Low Low Dat Pro Fac Low Low Zio Dee Pro Fac Upp Upp War Pro Fac Upp Upp Zhi Pro Res Traps Triggered 5 | . 1 . . . 1 . . . . . . 2 . . . . . . . . . . 1 . . . . . Indirectly . | . . . . . . . . . . . . . . . . . . . . . . . . . . . . . Trap Hack Attempts . | . . . . . . . . . . . . . . . . . . . . . . . . . . . . . Triggered . | . . . . . . . . . . . . . . . . . . . . . . . . . . . . . Disarmed . | . . . . . . . . . . . . . . . . . . . . . . . . . . . . . Reprogrammed . | . . . . . . . . . . . . . . . . . . . . . . . . . . . . . Reused . | . . . . . . . . . . . . . . . . . . . . . . . . . . . . . Traps Extracted . | . . . . . . . . . . . . . . . . . . . . . . . . . . . . . Installed . | . . . . . . . . . . . . . . . . . . . . . . . . . . . . . Triggered 15 | . . . . . . . . . 1 . . . . . . . . . . . 14 . . . . . . . Machines | -11 -10 -10 -10 -9 -8 -8 -7 -7 -7 -7 -6 -6 -6 -6 -6 -6 -5 -5 -5 -5 -5 -4 -4 -4 -4 -4 -3 -3 ---------- Run | Jun Mat Min Exi Min Mat Sto Fac Low Low Dat Pro Fac Low Low Zio Dee Pro Fac Upp Upp War Pro Fac Upp Upp Zhi Pro Res Machines Disabled 6 | . . . . . 1 1 . . . . . . . . . 1 . . . . . . . 1 . . . 2 Max in Single Turn 1 | . . . . . 1 1 . . . . . . . . . . . . . . . . . 1 . . . 1 Garrison Access 3 | . . . . . 1 . 1 . . . . 1 . . . . . . . . . . . . . . . . Machines Repaired . | . . . . . . . . . . . . . . . . . . . . . . . . . . . . . Machines Sabotaged . | . . . . . . . . . . . . . . . . . . . . . . . . . . . . . Overloaded Fab Kills . | . . . . . . . . . . . . . . . . . . . . . . . . . . . . . Hacking | -11 -10 -10 -10 -9 -8 -8 -7 -7 -7 -7 -6 -6 -6 -6 -6 -6 -5 -5 -5 -5 -5 -4 -4 -4 -4 -4 -3 -3 --------- Run | Jun Mat Min Exi Min Mat Sto Fac Low Low Dat Pro Fac Low Low Zio Dee Pro Fac Upp Upp War Pro Fac Upp Upp Zhi Pro Res Machines Accessed 63 | . 7 . 2 . 9 5 3 1 . 4 . 5 . . 1 . . 2 . . 8 . 1 1 . 7 . 7 Terminals 28 | . 5 . . . 7 4 1 . . . . 2 . . . . . 2 . . . . 1 . . . . 6 Fabricators . | . . . . . . . . . . . . . . . . . . . . . . . . . . . . . Repair Stations . | . . . . . . . . . . . . . . . . . . . . . . . . . . . . . Recycling Units 6 | . 2 . . . 1 1 1 . . . . . . . . . . . . . . . . . . . . 1 Scanalyzers . | . . . . . . . . . . . . . . . . . . . . . . . . . . . . . Garrison Access 5 | . . . . . 1 . 1 . . . . 3 . . . . . . . . . . . . . . . . Total Hacks 190 | . 18 . 24 . 14 9 5 1 . 30 . 9 . . 6 . . 4 . . 11 . 1 1 . 46 . 11 Successful 140 | . 7 . 24 . 2 4 1 1 . 30 . 2 . . 6 . . 2 . . 11 . . 1 . 46 . 3 Failed 50 | . 11 . . . 12 5 4 . . . . 7 . . . . . 2 . . . . 1 . . . . 8 Catastrophic 18 | . 1 . . . 5 . 2 . . . . 3 . . . . . 1 . . . . 1 . . . . 5 Database Lockouts . | . . . . . . . . . . . . . . . . . . . . . . . . . . . . . Manual 42 | . 13 . 1 . 10 1 . . . . . 3 . . 1 . . 4 . . 1 . . . . . . 8 Terminals 54 | . 15 . . . 11 6 3 . . . . 5 . . . . . 4 . . . . 1 . . . . 9 Fabricators . | . . . . . . . . . . . . . . . . . . . . . . . . . . . . . Repair Stations . | . . . . . . . . . . . . . . . . . . . . . . . . . . . . . Recycling Units 11 | . 3 . . . 2 3 1 . . . . . . . . . . . . . . . . . . . . 2 Scanalyzers . | . . . . . . . . . . . . . . . . . . . . . . . . . . . . . Garrison Access 6 | . . . . . 1 . 1 . . . . 4 . . . . . . . . . . . . . . . . Terminal Hacks 134 | . 7 . 24 . 1 4 . 1 . 30 . 1 . . 6 . . 1 . . 11 . . 1 . 46 . 1 Record 74 | . . . 23 . . . . . . 11 . . . . . . . . . . 5 . . 1 . 34 . . Part Schematic 21 | . . . . . . . . . . 11 . . . . 6 . . . . . . . . . . 4 . . Robot Schematic 5 | . . . . . . . . . . 5 . . . . . . . . . . . . . . . . . . Robot Analysis 10 | . 6 . . . . . . . . . . . . . . . . . . . . . . . . 4 . . Prototype ID Bank 12 | . 1 . . . . . . . . 3 . . . . . . . . . . 4 . . . . 4 . . Open Door 6 | . . . . . . 3 . 1 . . . . . . . . . . . . 2 . . . . . . . Level Access Points 1 | . . . . . . 1 . . . . . . . . . . . . . . . . . . . . . . Branch Access Points 4 | . . . . . 1 . . . . . . 1 . . . . . 1 . . . . . . . . . 1 Derelict Proto ID Bank 1 | . . . 1 . . . . . . . . . . . . . . . . . . . . . . . . . Fabricator Hacks . | . . . . . . . . . . . . . . . . . . . . . . . . . . . . . Repair Station Hacks . | . . . . . . . . . . . . . . . . . . . . . . . . . . . . . Recycling Unit Hacks 1 | . . . . . . . . . . . . . . . . . . . . . . . . . . . . 1 Retrieve Components 1 | . . . . . . . . . . . . . . . . . . . . . . . . . . . . 1 Scanalyzer . | . . . . . . . . . . . . . . . . . . . . . . . . . . . . . Garrison Access Hacks 3 | . . . . . 1 . 1 . . . . 1 . . . . . . . . . . . . . . . . Seal Access 3 | . . . . . 1 . 1 . . . . 1 . . . . . . . . . . . . . . . . Unauthorized Hacks 2 | . . . . . . . . . . . . . . . . . . 1 . . . . . . . . . 1 Terminals 1 | . . . . . . . . . . . . . . . . . . 1 . . . . . . . . . . Assimilate 1 | . . . . . . . . . . . . . . . . . . 1 . . . . . . . . . . Fabricators . | . . . . . . . . . . . . . . . . . . . . . . . . . . . . . Repair Stations . | . . . . . . . . . . . . . . . . . . . . . . . . . . . . . Recycling Units 1 | . . . . . . . . . . . . . . . . . . . . . . . . . . . . 1 Reject 1 | . . . . . . . . . . . . . . . . . . . . . . . . . . . . 1 Scanalyzers . | . . . . . . . . . . . . . . . . . . . . . . . . . . . . . Garrison Access . | . . . . . . . . . . . . . . . . . . . . . . . . . . . . . Data Cores Recovered . | . . . . . . . . . . . . . . . . . . . . . . . . . . . . . Used . | . . . . . . . . . . . . . . . . . . . . . . . . . . . . . Hacking Detections 31 | . 6 . . . 8 3 2 . . . . 4 . . . . . 2 . . . . 1 . . . . 5 Full Trace Events 4 | . . . . . 1 . . . . . . 1 . . . . . . . . . . . . . . . 2 Feedback Events 1 | . . . . . . . . . . . . . . . . . . . . . . . . . . . . 1 Corruption 1 | . . . . . . . . . . . . . . . . . . . . . . . . . . . . 1 Feedback Blocked . | . . . . . . . . . . . . . . . . . . . . . . . . . . . . . Robot Schematics Acquired 9 | . . . . . . . . . . 5 . . . . 4 . . . . . . . . . . . . . Robots Built . | . . . . . . . . . . . . . . . . . . . . . . . . . . . . . Authchips . | . . . . . . . . . . . . . . . . . . . . . . . . . . . . . Time . | . . . . . . . . . . . . . . . . . . . . . . . . . . . . . Total Robot Build Rating . | . . . . . . . . . . . . . . . . . . . . . . . . . . . . . Part Schematics Acquired 36 | . . . . . . . . . . 11 . . . . 21 . . . . . . . . . . 4 . . Parts Built . | . . . . . . . . . . . . . . . . . . . . . . . . . . . . . Authchips . | . . . . . . . . . . . . . . . . . . . . . . . . . . . . . Time . | . . . . . . . . . . . . . . . . . . . . . . . . . . . . . Total Part Build Rating . | . . . . . . . . . . . . . . . . . . . . . . . . . . . . . Parts Repaired . | . . . . . . . . . . . . . . . . . . . . . . . . . . . . . Time . | . . . . . . . . . . . . . . . . . . . . . . . . . . . . . Parts Recycled . | . . . . . . . . . . . . . . . . . . . . . . . . . . . . . Recycled Matter . | . . . . . . . . . . . . . . . . . . . . . . . . . . . . . Retrieved Matter . | . . . . . . . . . . . . . . . . . . . . . . . . . . . . . Retrieved Components 3 | . . . . . . . . . . . . . . . . . . . . . . . . . . . . 3 Parts Scanalyzed . | . . . . . . . . . . . . . . . . . . . . . . . . . . . . . Part Schematics Acquired . | . . . . . . . . . . . . . . . . . . . . . . . . . . . . . Parts Damaged . | . . . . . . . . . . . . . . . . . . . . . . . . . . . . . Bothacking | -11 -10 -10 -10 -9 -8 -8 -7 -7 -7 -7 -6 -6 -6 -6 -6 -6 -5 -5 -5 -5 -5 -4 -4 -4 -4 -4 -3 -3 ------------ Run | Jun Mat Min Exi Min Mat Sto Fac Low Low Dat Pro Fac Low Low Zio Dee Pro Fac Upp Upp War Pro Fac Upp Upp Zhi Pro Res Used RIF Installer . | . . . . . . . . . . . . . . . . . . . . . . . . . . . . . Robots Hacked . | . . . . . . . . . . . . . . . . . . . . . . . . . . . . . Non-combat . | . . . . . . . . . . . . . . . . . . . . . . . . . . . . . Combat . | . . . . . . . . . . . . . . . . . . . . . . . . . . . . . Robot Hacks Applied . | . . . . . . . . . . . . . . . . . . . . . . . . . . . . . Relay Couplers Released . | . . . . . . . . . . . . . . . . . . . . . . . . . . . . . Fabnet Peak Effective % . | . . . . . . . . . . . . . . . . . . . . . . . . . . . . . Robots Rewired 5 | . . . . . . . . . . . . . . . . . . . . . 5 . . . . . . . Allies Hacked . | . . . . . . . . . . . . . . . . . . . . . . . . . . . . . Hacks Repelled . | . . . . . . . . . . . . . . . . . . . . . . . . . . . . . Allies | -11 -10 -10 -10 -9 -8 -8 -7 -7 -7 -7 -6 -6 -6 -6 -6 -6 -5 -5 -5 -5 -5 -4 -4 -4 -4 -4 -3 -3 -------- Run | Jun Mat Min Exi Min Mat Sto Fac Low Low Dat Pro Fac Low Low Zio Dee Pro Fac Upp Upp War Pro Fac Upp Upp Zhi Pro Res Total Allies 14 | . . . . . . . . . . . 1 . . . 7 . . 1 . . 5 . . . . . . . Largest Group 7 | . . . . . . . . . . . 1 . . . 7 7 . 1 . . 5 . . . . . . . Highest-Rated Group 311 | . . . . . . . . . . . 96 . . . 311 311 . 10 . . 231 . . . . . . . Highest-Rated Ally 96 | . . . . . . . . . . . 96 . . . 96 96 . 10 . . 49 . . . . . . . Total Orders 6 | . . . . . . . . . . . . . . . . . . . . . 6 . . . . . . . STAY 5 | . . . . . . . . . . . . . . . . . . . . . 5 . . . . . . . FOLLOW 1 | . . . . . . . . . . . . . . . . . . . . . 1 . . . . . . . Ally Attacks 107 | . . . . . . . . . . . 14 . . . . 55 . . . . 38 . . . . . . . Total Damage 2745 | . . . . . . . . . . . 436 . . . . 931 . . . . 1378 . . . . . . . Kills 20 | . . . . . . . . . . . 4 . . . . 7 . . . . 9 . . . . . . . Allies Corrupted . | . . . . . . . . . . . . . . . . . . . . . . . . . . . . . Allies Melted 2 | . . . . . . . . . . . . . . . . . . . . . 2 . . . . . . . Intel | -11 -10 -10 -10 -9 -8 -8 -7 -7 -7 -7 -6 -6 -6 -6 -6 -6 -5 -5 -5 -5 -5 -4 -4 -4 -4 -4 -3 -3 ------- Run | Jun Mat Min Exi Min Mat Sto Fac Low Low Dat Pro Fac Low Low Zio Dee Pro Fac Upp Upp War Pro Fac Upp Upp Zhi Pro Res Robot Analysis Total 10 | . 6 . . . . . . . . . . . . . . . . . . . . . . . . 4 . . Derelict Logs Recovered 10 | . . . . 2 . . . 2 . . 1 . . 1 1 . . . . 2 . . . . 1 . . . Drone Launches . | . . . . . . . . . . . . . . . . . . . . . . . . . . . . . Drone Recoveries . | . . . . . . . . . . . . . . . . . . . . . . . . . . . . . Exploration | -11 -10 -10 -10 -9 -8 -8 -7 -7 -7 -7 -6 -6 -6 -6 -6 -6 -5 -5 -5 -5 -5 -4 -4 -4 -4 -4 -3 -3 ------------- Run | Jun Mat Min Exi Min Mat Sto Fac Low Low Dat Pro Fac Low Low Zio Dee Pro Fac Upp Upp War Pro Fac Upp Upp Zhi Pro Res Turns Passed 9967 | 69 1398 274 827 1285 1149 1378 161 284 64 17 65 232 61 59 400 271 45 94 49 44 694 83 72 90 71 143 142 446 Spaces Moved 12507 | 44 764 149 509 555 547 609 393 934 284 86 274 639 265 254 1064 394 183 261 271 240 1057 319 191 313 266 177 479 986 Core . | . . . . . . . . . . . . . . . . . . . . . . . . . . . . . Treads 3017 | . 648 149 509 555 547 609 . . . . . . . . . . . . . . . . . . . . . . Legs 160 | 44 116 . . . . . . . . . . . . . . . . . . . . . . . . . . . Wheels . | . . . . . . . . . . . . . . . . . . . . . . . . . . . . . Hover . | . . . . . . . . . . . . . . . . . . . . . . . . . . . . . Flight 9330 | . . . . . . . 393 934 284 86 274 639 265 254 1064 394 183 261 271 240 1057 319 191 313 266 177 479 986 Fastest Speed 17 | 120 120 160 160 160 156 156 20 23 20 20 20 20 20 23 21 21 21 18 18 17 17 21 21 26 26 26 25 21 Average Speed 56 | 120 153 160 160 160 159 156 21 23 21 20 22 22 22 23 22 23 22 20 18 17 17 21 23 26 26 26 25 25 Slowest Speed 160 | 120 160 160 160 160 160 160 23 23 23 20 23 23 23 23 23 25 25 25 18 20 21 21 26 26 26 26 26 99 Overloaded Moves . | . . . . . . . . . . . . . . . . . . . . . . . . . . . . . Propulsion Burnouts . | . . . . . . . . . . . . . . . . . . . . . . . . . . . . . Robots Hopped 11 | . . . . . . . . 1 . . . 3 . . . . . 2 . . 2 . . . . . . 3 Cave-ins Triggered 1 | . . . . . . 1 . . . . . . . . . . . . . . . . . . . . . . Exploration Rate (%) 52 | 4 96 25 90 91 41 66 15 85 52 71 59 24 57 54 89 48 38 12 51 38 96 57 6 46 50 62 69 38 Regions Visited 28 Branch Regions 21 Pre-discovered Areas 6 | . . . 1 1 . . . . . 1 . . . . . . . . . . . . . . . 3 . . Known Exits Taken 23 | . . . . . 1 1 1 1 1 1 1 1 1 1 1 1 1 1 1 1 1 1 1 1 1 1 1 . Unknown Exits Taken 5 | 1 1 1 1 1 . . . . . . . . . . . . . . . . . . . . . . . . Scrap Searched 20 | . . 1 . 2 . . . 2 3 . 2 . . 3 1 . . . . 2 . . . 1 1 . 2 . Spaces Dug 59 | . . . . . . 7 . 1 . . 2 8 . . 2 . . 10 . . . 1 7 . 1 . 1 19 Terrain Destroyed 198 | . . . . 59 . 72 . 16 . . 2 8 . . 2 . . 10 . . . 1 7 . 1 . 1 19 Melee 52 | . . . . . . 1 . 1 . . 2 8 . . 2 . . 10 . . . 1 7 . 1 . 1 18 Projectile 4 | . . . . . . 3 . . . . . . . . . . . . . . . . . . . . . 1 AOE 142 | . . . . 59 . 68 . 15 . . . . . . . . . . . . . . . . . . . . Terrain Rammed . | . . . . . . . . . . . . . . . . . . . . . . . . . . . . . Walls Destroyed . | . . . . . . . . . . . . . . . . . . . . . . . . . . . . . Machines Disabled . | . . . . . . . . . . . . . . . . . . . . . . . . . . . . . Actions | -11 -10 -10 -10 -9 -8 -8 -7 -7 -7 -7 -6 -6 -6 -6 -6 -6 -5 -5 -5 -5 -5 -4 -4 -4 -4 -4 -3 -3 --------- Run | Jun Mat Min Exi Min Mat Sto Fac Low Low Dat Pro Fac Low Low Zio Dee Pro Fac Upp Upp War Pro Fac Upp Upp Zhi Pro Res Total 14800 | 50 884 168 521 909 733 856 465 988 286 85 275 706 264 253 1214 563 185 288 270 241 1570 333 211 318 266 261 496 1141 Wait 1510 | . 24 4 . 319 77 79 30 35 3 . . 22 . . 135 139 2 14 . . 446 14 . . . 57 5 105 Move 12456 | 43 763 148 508 554 546 607 392 931 283 85 273 632 264 253 1063 393 182 256 270 239 1052 318 190 312 265 176 478 980 Hop 11 | . . . . . . . . 1 . . . 3 . . . . . 2 . . 2 . . . . . . 3 Pick Up 72 | 1 11 2 2 1 18 8 5 3 . . . 3 . . 1 3 . 1 . . 4 . . 1 . 3 2 3 Fast Attach 51 | 1 8 . 3 . 4 5 . . . . . 2 . . 2 5 . 1 . . 6 . 2 . . 4 1 7 Attach 53 | . 1 1 . . 4 7 12 1 . . . 3 . . 2 3 . 2 . 1 3 . 2 2 . 1 3 5 Detach 24 | . 1 . . . 1 1 2 . . . . 3 . . 1 3 . . . . 6 . 2 . . 1 1 2 Swap 52 | . 2 . 3 6 9 18 2 2 . . . 1 . . . . 1 . . 1 2 . . 1 . 2 2 . Drop 104 | . 17 2 5 1 13 16 13 2 . . . 3 . . 4 7 . 1 . . 8 . 2 . . 5 3 2 Fire 286 | 5 57 11 . 28 61 100 . 11 . . . . . . . 10 . . . . . . . . . . . 3 Melee 114 | . . . . . . 14 9 2 . . 2 16 . . 6 . . 11 . . . 1 7 2 1 12 1 30 Ram 1 | . . . . . . . . . . . . . . . . . . . . . . . . . . . . 1 Kick . | . . . . . . . . . . . . . . . . . . . . . . . . . . . . . Crush . | . . . . . . . . . . . . . . . . . . . . . . . . . . . . . Escape Stasis 25 | . . . . . . 1 . . . . . 18 . . . . . . . . . . 6 . . . . . Rewire 41 | . . . . . . . . . . . . . . . . . . . . . 41 . . . . . . . Trap . | . . . . . . . . . . . . . . . . . . . . . . . . . . . . . Miscellaneous . | . . . . . . . . . . . . . . . . . . . . . . . . . . . . . Route ------- -11/Junkyard -10/Materials (discovered 5 exits: [*Mat x3] / [*Min] / [*Sub]) -10/Mines (discovered 2 exits: [*Mat] / *Exi) -10/Exiles (discovered 2 exits: [*Min x2]) -9/Mines -8/Materials -8/Storage -7/Factory (discovered 2 exits: *Fac / *Low) -7/Lower Caves -7/Lower Caves (discovered 2 exits: *Fac / *Dat) -7/Data Miner -6/Proximity Caves -6/Factory (discovered 3 exits: Fac / *Low x2) -6/Lower Caves -6/Lower Caves (discovered 2 exits: *Fac / *Zio) -6/Zion (discovered 2 exits: *Dee / [*Pro]) -6/Deep Caves -5/Proximity Caves -5/Factory (discovered 4 exits: *Upp x2 / Ext x2) -5/Upper Caves -5/Upper Caves -5/Warlord -4/Proximity Caves -4/Factory -4/Upper Caves -4/Upper Caves -4/Zhirov -3/Proximity Caves -3/Research (discovered 3 exits: Arm / Qua x2) History --------- Turn | Location | Event 10 | -11/Junkyard | Discovered new exit (range 3) 70 | -11/Junkyard | Entered Materials 256 | -10/Materials | Discovered new exit (range 9) 300 | -10/Materials | Build established: Mutant 672 | -10/Materials | Discovered new exit (range 15) 956 | -10/Materials | Discovered new exit (range 15) 998 | -10/Materials | Discovered new exit (range 6) 1197 | -10/Materials | Discovered new exit (range 16) 1468 | -10/Materials | Entered Mines 1512 | -10/Mines | Discovered new exit (range 10) 1571 | -10/Mines | Deemed a non-threat by the Exiles lab entrance 1571 | -10/Mines | Discovered new exit (range 5) 1742 | -10/Mines | Entered Exiles 1770 | -10/Exiles | Discovered new exit (range 14) 1789 | -10/Exiles | Met 8R-AWN 1814 | -10/Exiles | Met EX-HEX 1878 | -10/Exiles | Met EX-DEC 1885 | -10/Exiles | Learned location of Zion (-6) 2075 | -10/Exiles | Met EX-BIN 2096 | -10/Exiles | Aligned with FarCom system 2098 | -10/Exiles | Given EX-Vault access code 2134 | -10/Exiles | Opened EX-Vault 2148 | -10/Exiles | Found Field Lobotomy Kit 2155 | -10/Exiles | Found Cloak of Protection 2158 | -10/Exiles | Found Longsword +1 2209 | -10/Exiles | Warned to stay clear of 0b10 Research branches 2303 | -10/Exiles | Visited The Gauntlet 2553 | -10/Exiles | Discovered new exit (range 11) 2569 | -10/Exiles | Stole three prototypes: Cloak of Protection, Field Lobotomy Kit, Longsword +1 2569 | -10/Exiles | Entered Mines 2676 | -9/Mines | Received a Rocket Launcher from a helpful Derelict 3072 | -9/Mines | Learned 4 Materials zone layouts 3166 | -9/Mines | Found a hidden stash of uninstalled traps 3176 | -9/Mines | Learned location of Storage (-8) 3263 | -9/Mines | Discovered new exit (range 15) 3304 | -9/Mines | A weapon hastily lodged in a ceiling crevice suddenly fell to the ground 3854 | -9/Mines | Entered Materials 3854 | -8/Materials | Evolved 4 slots: Propulsion x2, Utility x2 4772 | -8/Materials | Identified exit to Storage 5003 | -8/Materials | Entered Storage 5144 | -8/Storage | Build established: Scavenger-Mutant 5149 | -8/Storage | Crushed by falling debris 5777 | -8/Storage | Identified exit to Factory 6381 | -8/Storage | Entered Factory 6381 | -7/Factory | Evolved 2 slots: Propulsion x2 6383 | -7/Factory | FarCom data flow suspended 6447 | -7/Factory | Discovered new exit (range 5) 6449 | -7/Factory | Identified exit to Lower Caves 6464 | -7/Factory | Discovered new exit (range 9) 6465 | -7/Factory | Identified exit to Factory 6542 | -7/Factory | Entered Lower Caves 6618 | -7/Lower Caves | Attracted the attention of an 0b10 checkpoint 6622 | -7/Lower Caves | Learned location of 1 exit from Proximity Caves 6687 | -7/Lower Caves | Build established: Sprinter 6716 | -7/Lower Caves | Encountered a Warlord checkpoint 6718 | -7/Lower Caves | Learned location of 1 exit from Factory 6821 | -7/Lower Caves | Discovered new exit (range 6) 6826 | -7/Lower Caves | Identified exit to Lower Caves 6826 | -7/Lower Caves | Entered another Lower Caves area 6828 | -7/Lower Caves | Discovered exit to Factory (range 6) 6884 | -7/Lower Caves | Spotted XT-KE0(f) 6884 | -7/Lower Caves | Spotted 72-FW1(f) 6886 | -7/Lower Caves | Encountered a Master Thief 6886 | -7/Lower Caves | Encountered a Master Thief 6889 | -7/Lower Caves | Discovered new exit (range 8) 6890 | -7/Lower Caves | Identified exit to Data Miner 6890 | -7/Lower Caves | Entered Data Miner 6890 | -7/Data Miner | Discovered new exit (range 6) 6894 | -7/Data Miner | Met Data Miner 6901 | -7/Data Miner | Learned location of Section 7 (-2) 6901 | -7/Data Miner | Acquired the access code to Warlord's prototype stash 6902 | -7/Data Miner | Received God Mode back door access code from Data Miner 6907 | -7/Data Miner | Identified exit to Proximity Caves 6907 | -7/Data Miner | Entered Proximity Caves 6949 | -6/Proximity Caves | Learned location of 1 exit from Proximity Caves 6972 | -6/Proximity Caves | Entered Factory 6972 | -6/Factory | Evolved 2 slots: Utility x2 6973 | -6/Factory | Identified exit to Factory 7135 | -6/Factory | Identified exit to Lower Caves 7150 | -6/Factory | Incoming investigation squad redirected 7204 | -6/Factory | Entered Lower Caves 7229 | -6/Lower Caves | Encountered a Warlord checkpoint 7254 | -6/Lower Caves | Attracted the attention of an 0b10 checkpoint 7262 | -6/Lower Caves | Discovered new exit (range 8) 7264 | -6/Lower Caves | Identified exit to Lower Caves 7265 | -6/Lower Caves | Entered another Lower Caves area 7318 | -6/Lower Caves | Discovered new exit (range 8) 7323 | -6/Lower Caves | Identified exit to Zion 7324 | -6/Lower Caves | Entered Zion 7353 | -6/Zion | Discovered new exit (range 10) 7414 | -6/Zion | Found Prototype Device 7414 | -6/Zion | Identified Phasing AFG 7433 | -6/Zion | Given A8's code to call for help 7541 | -6/Zion | Gained Derelict followers 7576 | -6/Zion | Discovered new exit (range 5) 7576 | -6/Zion | Saw the warning signs outside the Deep Caves entrance 7577 | -6/Zion | Identified exit to Deep Caves 7687 | -6/Zion | Enhanced Grunt warped into view, answering call for help 7695 | -6/Zion | Enhanced Grunt warped into view, answering call for help 7724 | -6/Zion | Entered Deep Caves 7724 | -6/Deep Caves | Accompanied by 7 allies 7800 | -6/Deep Caves | Attacked by Z-Imprinter 7828 | -6/Deep Caves | Destroyed Z-Imprinter 7839 | -6/Deep Caves | Found Prototype Protection 7839 | -6/Deep Caves | Identified Zio. Weapon Casing 7847 | -6/Deep Caves | Found Prototype Device 7847 | -6/Deep Caves | Identified Exp. Thermal Shield 7960 | -6/Deep Caves | Z-Facility disabled 7987 | -6/Deep Caves | Discovered new exit (range 6) 7988 | -6/Deep Caves | Identified exit to Proximity Caves 7995 | -6/Deep Caves | Entered Proximity Caves 8010 | -5/Proximity Caves | Attracted the attention of an 0b10 checkpoint 8040 | -5/Proximity Caves | Entered Factory 8040 | -5/Factory | Evolved 2 slots: Power x1, Propulsion x1 8099 | -5/Factory | Identified exit to Upper Caves 8099 | -5/Factory | Identified exit to Extension 8111 | -5/Factory | Spotted B-75 Beast 8134 | -5/Factory | Entered Upper Caves 8134 | -5/Upper Caves | Spotted 4X-WGR(f) 8135 | -5/Upper Caves | Encountered a Master Thief 8135 | -5/Upper Caves | Spotted A5-SVR(f) 8167 | -5/Upper Caves | Encountered a Warlord checkpoint 8182 | -5/Upper Caves | Discovered new exit (range 7) 8183 | -5/Upper Caves | Identified exit to Upper Caves 8183 | -5/Upper Caves | Entered another Upper Caves area 8193 | -5/Upper Caves | Identified exit to Warlord 8227 | -5/Upper Caves | Entered Warlord 8237 | -5/Warlord | Discovered new exit (range 8) 8310 | -5/Warlord | Met Warlord 8312 | -5/Warlord | Opened Warlord's prototype stash 8320 | -5/Warlord | Found Prototype Device 8320 | -5/Warlord | Identified System Purifier 8322 | -5/Warlord | Found Prototype Processor 8322 | -5/Warlord | Identified Exp. Core Analyzer 8335 | -5/Warlord | Warlord's base attacked by MAIN.C 8361 | -5/Warlord | Found Prototype Launcher 8363 | -5/Warlord | Identified Vortex Catalyst Activator 8365 | -5/Warlord | Found Prototype Energy Gun 8366 | -5/Warlord | Found Prototype Energy Gun 8366 | -5/Warlord | Identified Vortex Rail (x2) 8585 | -5/Warlord | Build established: Commander-Sprinter 8685 | -5/Warlord | Warlord forces counterattacked 8781 | -5/Warlord | P-80 Master assimilated allied M8-DQM(g) 8805 | -5/Warlord | Spotted Executioner 8815 | -5/Warlord | Spotted Striker 8847 | -5/Warlord | Spotted Striker 8847 | -5/Warlord | Spotted Executioner 8903 | -5/Warlord | Opened side exit 8920 | -5/Warlord | Identified exit to Proximity Caves 8921 | -5/Warlord | Entered Proximity Caves 9003 | -4/Proximity Caves | Discovered new exit (range 5) 9004 | -4/Proximity Caves | Identified exit to Factory 9004 | -4/Proximity Caves | Entered Factory 9004 | -4/Factory | Evolved 2 slots: Utility x2 9005 | -4/Factory | Identified exit to Upper Caves 9076 | -4/Factory | Entered Upper Caves 9129 | -4/Upper Caves | Found Alien Artifact 9134 | -4/Upper Caves | Identified Dimensional Node Initializer 9134 | -4/Upper Caves | Initialized slip node 9160 | -4/Upper Caves | Discovered new exit (range 12) 9166 | -4/Upper Caves | Identified exit to Upper Caves 9166 | -4/Upper Caves | Entered another Upper Caves area 9166 | -4/Upper Caves | Spotted T3-TUF(f) 9166 | -4/Upper Caves | Spotted TC-23I(f) 9167 | -4/Upper Caves | Encountered a Master Thief 9167 | -4/Upper Caves | Encountered a Master Thief 9211 | -4/Upper Caves | Attracted the attention of an 0b10 checkpoint 9217 | -4/Upper Caves | Build established: Scavenger-Sprinter 9217 | -4/Upper Caves | Attracted the attention of an 0b10 outpost 9233 | -4/Upper Caves | Discovered new exit (range 13) 9236 | -4/Upper Caves | Identified exit to Zhirov 9236 | -4/Upper Caves | Learned Research trap positions 9237 | -4/Upper Caves | Entered Zhirov 9297 | -4/Zhirov | Discovered new exit (range 3) 9308 | -4/Zhirov | Learned location of Quarantine (-3) 9308 | -4/Zhirov | Learned location of Command (-1) 9308 | -4/Zhirov | Learned location of Testing (-2) 9319 | -4/Zhirov | Found Alien Artifact 9319 | -4/Zhirov | Identified Integrated Dissipator 9319 | -4/Zhirov | Installed Integrated Dissipator, increased core heat dissipation (+20) 9324 | -4/Zhirov | Found Alien Artifact 9380 | -4/Zhirov | Identified exit to Proximity Caves 9380 | -4/Zhirov | Entered Proximity Caves 9391 | -3/Proximity Caves | Spotted B-86 Titan 9516 | -3/Proximity Caves | Discovered new exit (range 14) 9522 | -3/Proximity Caves | Identified exit to Research 9522 | -3/Proximity Caves | Entered Research 9522 | -3/Research | Evolved 2 slots: Propulsion x1, Utility x1 9523 | -3/Research | Loaded intel: 80 trap records 9616 | -3/Research | Spotted B-86 Titan 9620 | -3/Research | Incoming investigation squad redirected 9658 | -3/Research | Identified exit to Armory 9658 | -3/Research | Identified exit to Quarantine 9687 | -3/Research | Lost 3 parts (1p2n) 9772 | -3/Research | Search patrols dispatched 9968 | -3/Research | Self-destructed Last Messages --------------- 09839_ K-01 Serf collects debris. 09840_ Acquired Lgt. Ion Engine. 09840_ K-01 Serf collects debris. 09902_ K-01 Serf cleans the Prototyping Station. 09923_ K-01 Serf cleans the Fabricator. 09924_ K-01 Serf cleans the Graviton Restrictor. 09953_ Imp. VTOL Module destroyed. 09958_ U-05 Engineer builds a Wall. 09961_ Adv. Sensor Array destroyed. 09962_ Impulse Thruster Array destroyed. 09963_ Acquired Q-thruster. 09967_ Cld. Impulse Thruster destroyed. 09967_ Slammed into A-15 Conveyor. 09967_ Destabilizing: System interference. 09967_ Exp. Heat Sink temporarily disabled. 09967_ Structural Scanner temporarily disabled. 09967_ Adv. Signal Interpreter temporarily disabled. 09968_ A-15 Conveyor calls for reinforcements. 09968_ ALERT: Hostile activity reported, dispatching reinforcements to area. Map ----- +----------------------------------------------------+ | ?????????????????????????????????????????????????? | | ?????????????????????????????????????????????????? | | ?????????????????????????????????????????????????? | | ?????????????????????????????????????????????????? | | ?????????????????????????????????????????????????? | | #????????????????????????????????????????????????? | | ######???????????????????????????????????????????? | | ######???????????????????????????????????????????? | | ##???????????????????????????????????????????? | | ##????>?????????????????????????^????????????? | | "" ##??????????????????? ??????????^????????????? | | "" ##??????????????????? ???????????????????????? | | "" ##??????????????????? ???????????????????????? | | ##"?????????????????? ???????????????????????? | | #####???????????????? ???????????????????????? | | "####???????????????? ???????????????????????? | | """##?????????????? # ##?????????????????????? | | R"##?????????????? + ##?????????????????????? | | """##?????????????? # ##?????????????????????? | | #####?????########?## ##?????????????????????? | | ] ##################?## ?????????????????????? | | ########### ##?##A##?????????????????????? | | ### ##?##A##?????????????????????? | | #+##### = #####A####???????????????????? | | # # ### #####/####???????????????????? | | # ##### ## @k ##???????????????????? | | # ### # ####### ##???????????????????? | | #+##### ####### g ##???????????????????? | | # g ##???????????????????? | | # # ##???????????????????? | | "" # # ##???????????????????? | | "" # g #########???????????????????? | | "T # #########???????????????????? | | "" # g ##??????????????????????????? | | "" ! # ##??????????????????????????? | | # ?????????????????????????? | | ! # ????????????????????????? | | # ##?????????????????????? | | # ##?????????????????????? | | + ##?????????????????????? | | # ## ##?????????????????????? | | #+##### ## ##?????????????????????? | | # # ## ##???H?????????????????? | | ##????????????????????????? | | ##????? #??????????????? | | ##??###????? ##??????????????? | | # ##???????? # ##??????????????? | | # ##???????? # ##??????????????? | | # ##???????? + ##??????????????? | | ##???????? # ##??????????????? | +----------------------------------------------------+ Best States ------------- Heat Dissipation 92 Energy Generation 24 Energy Capacity 1290 Matter Stores 300 Matter Capacity 300 Sight Range 16 Robot Scan Range 16 Terrain Scan Range 16 Terrain Scan Density 10 Cloak Strength 5 Armor Coverage 450 Weapon Shielding 100 Evasion (%) 75 Recoil Reduction 4 Offensive Hacking 11 Defensive Hacking 12 Item Schematics ----------------- Combat Drone Bay | -7/Data Miner | Free Lgt. Regenerative Plating | -7/Data Miner | Free Cld. Aerolev Unit | -7/Data Miner | Free Thermal Defense Suite | -7/Data Miner | Free Imp. Heavy Laser | -7/Data Miner | Free Nuclear Pulse Array | -7/Data Miner | Free Recoil Nullifier | -7/Data Miner | Free Enh. Gauss Cannon | -7/Data Miner | Free Thermic Laser | -7/Data Miner | Free Lance | -7/Data Miner | Free Micro-nuke Launcher | -7/Data Miner | Free Beamcaster | -6/Zion | Free Hvy. Riot Gun | -6/Zion | Free Barrage Gun | -6/Zion | Free Battle Cannon | -6/Zion | Free Flamer | -6/Zion | Free Enh. Flamer | -6/Zion | Free Lgt. Angular Momentum Engine | -6/Zion | Archive Wave Gun | -6/Zion | Archive Adv. System Shield | -6/Zion | Archive Hardcell Cannon | -6/Zion | Archive Imp. Recalibrator | -6/Zion | Archive Remote Shield | -6/Zion | Archive Adv. Trap Extractor | -6/Zion | Archive Mak. Transmission Jammer | -6/Zion | Archive KE Penetrator | -6/Zion | Archive Plasma Rifle | -6/Zion | Archive Imp. System Shield | -6/Zion | Archive Imp. Plasma Cutter | -6/Zion | Archive Imp. Thermal Generator | -6/Zion | Archive EM Disruption Field | -6/Zion | Archive Matter Neutralizer | -6/Zion | Archive Assault Drone Bay | -4/Zhirov | Free Exp. Heat Sink | -4/Zhirov | Free Exp. Optical Array | -4/Zhirov | Free Imp. Arc Thrower | -4/Zhirov | Free Robot Schematics ------------------ C-17 Slicer | -7/Data Miner | Free R-10 Processor | -7/Data Miner | Free M-22 Extractor | -7/Data Miner | Free M-14 Sweeper | -7/Data Miner | Free G-50 Soldier | -7/Data Miner | Free A-02 Transporter | -6/Zion | Archive Y-54 Guardian | -6/Zion | Archive B-48 Gladiator | -6/Zion | Archive L-61 Swordsman | -6/Zion | Archive Fabricated ------------ Nothing Alien Tech Used ----------------- Dimensional Node Initializer Integrated Dissipator Achievements -------------- None Challenges ------------ None Game ------ Seed MyomerWeldingRail Manual? 0 Play Time 03:30:08 Cumulative 195.0 hours Start 2023.11.16 @ 08:05:43 End 2023.11.17 @ 14:45:56 Sessions 7 Manual Loads 0 Difficulty Rogue Special Mode None Game No. 116 Rogue 116 Adventurer 0 Explorer 0 Win Type - Total 4 Types 3/0/1/0/0/0/0/0/0 Lore% 54 Gallery% 54 Achievement% 51 Wizard Run 0 Options --------- ASCII 0 Keyboard 0 Movement Mouse Keybinds 0 Fullscreen 1 Font 18/SmallcapsGlow Map View 76x50 Tactical HUD 1 Map Filters NONE Filters NONE Steam 1 RUN: 1274cc45-4665-42ce-82c0-64f1a6e6036e